bitfinex/quotes_BTCUSD_20250703
["timestamp","ask_amount","ask_price","bid_price","bid_amount"]
[1751549623809,0.14240834,110010.0,109990.0,0.23788327]
[1751549624041,0.10840263,110010.0,110000.0,0.18181818]
[1751549624311,0.0169657,110020.0,110010.0,0.22875724]
[1751549624561,0.00046,110030.0,110020.0,0.19996346]
[1751549624562,0.09189693,110030.0,110020.0,0.19996346]
[1751549624785,0.00046,110030.0,110020.0,0.23782897]
[1751549625005,0.00046,110030.0,110020.0,0.24391797]
[1751549625229,0.00046,110030.0,110020.0,0.03786551]
[1751549625718,0.66442614,110030.0,110010.0,0.00046976]
[1751549625963,0.10052544,110020.0,110010.0,0.00046976]
[1751549626206,0.09143693,110020.0,110010.0,0.00046976]
[1751549626482,0.10052552,110020.0,110010.0,0.00046976]
[1751549627132,0.09143693,110020.0,110010.0,0.00046976]
[1751549627352,0.10052544,110020.0,110010.0,0.18227141]
[1751549627578,0.09143693,110020.0,110010.0,0.00046976]
[1751549627798,0.09143693,110020.0,110010.0,0.24740691]
[1751549628026,0.09143693,110020.0,110010.0,0.2105414]
[1751549628292,0.09143693,110020.0,110010.0,0.24840691]
[1751549628514,0.09143693,110020.0,110010.0,0.21254132]
[1751549628722,0.09143693,110020.0,110010.0,0.25040683]
[1751549628939,0.10052544,110020.0,110010.0,0.232227]
[1751549629146,0.09143693,110020.0,110010.0,0.20345149]
[1751549629410,0.09143693,110020.0,110010.0,0.25240683]
[1751549629622,0.09143693,110020.0,110010.0,0.27058608]
[1751549630247,0.00046,110030.0,110020.0,0.20905213]
[1751549630462,0.00046,110030.0,110020.0,0.25600631]
[1751549630705,0.00066,110030.0,110020.0,0.25600631]
[1751549631555,0.00066,110030.0,110020.0,0.28390631]
[1751549631997,0.00066,110030.0,110020.0,0.26572888]
[1751549632212,0.00066,110030.0,110020.0,0.2469178]
[1751549632420,0.00066,110030.0,110020.0,0.25800664]
[1751549632636,0.00066,110030.0,110020.0,0.26909531]
[1751549632858,0.00066,110030.0,110020.0,0.2670954]
[1751549633087,0.00066,110030.0,110020.0,0.24282888]
[1751549633327,0.00066,110030.0,110020.0,0.25191764]
[1751549633547,0.00066,110030.0,110020.0,0.2519178]
[1751549633759,0.56520496,110030.0,110020.0,0.005]
[1751549633975,0.66572982,110030.0,110020.0,0.04286551]
[1751549634194,0.674818,110030.0,110020.0,0.04286551]
[1751549634404,0.65664189,110030.0,110020.0,0.04286551]
[1751549634616,0.67481766,110030.0,110020.0,0.04286551]
[1751549634827,0.64755421,110030.0,110020.0,0.22465063]
[1751549635031,0.64755421,110030.0,110020.0,0.23373972]
[1751549635239,0.18353386,110030.0,110020.0,0.25191731]
[1751549635467,0.09209693,110030.0,110020.0,0.25191731]
[1751549635683,0.09209693,110030.0,110020.0,0.04286551]
[1751549635976,0.09209693,110030.0,110020.0,0.005]
[1751549635977,0.75606183,110030.0,110020.0,0.005]
[1751549636205,6.29719224,110030.0,110020.0,0.005]
[1751549636901,5.58232693,110030.0,110020.0,0.002]
[1751549637117,0.78334154,110030.0,110020.0,0.002]
[1751549637339,0.77425386,110030.0,110020.0,0.18378512]
[1751549637549,0.69190469,110030.0,110020.0,0.01208925]
[1751549637757,0.7009927,110030.0,110020.0,0.003]
[1751549638170,0.69190469,110030.0,110020.0,0.003]
[1751549638396,0.7009927,110030.0,110020.0,0.003]
[1751549639033,0.71916914,110030.0,110020.0,0.003]
[1751549639248,0.81060599,110030.0,110020.0,0.003]
[1751549639469,1.27462634,110030.0,110020.0,0.003]
[1751549639695,1.28371477,110030.0,110020.0,0.003]
[1751549639909,1.46548337,110030.0,110020.0,0.003]
[1751549640124,1.4473076,110030.0,110020.0,0.003]
[1751549640339,0.81803022,110030.0,110020.0,0.003]
[1751549640553,1.28205057,110030.0,110020.0,0.003]
[1751549640764,1.16501323,110030.0,110020.0,0.003]
[1751549641005,1.17410149,110030.0,110020.0,0.003]
[1751549641228,6.36477309,110030.0,110020.0,0.003]
[1751549641673,6.41477309,110030.0,110020.0,0.003]
[1751549642126,6.09951224,110030.0,110020.0,0.001]
[1751549642354,1.16481364,110030.0,110020.0,0.001]
[1751549642585,0.48385693,110030.0,110010.0,0.2564949]
[1751549642800,0.09143693,110020.0,110010.0,0.27230548]
[1751549643010,0.09143693,110020.0,110010.0,0.28139498]
[1751549643630,0.00066,110030.0,110020.0,0.19996337]
[1751549643894,0.09209693,110030.0,110020.0,0.26352888]
[1751549644116,0.09209693,110030.0,110020.0,0.26452888]
[1751549644338,0.15376275,110030.0,110020.0,0.2736178]
[1751549644557,0.15376275,110030.0,110020.0,0.26352888]
[1751549644784,0.15376275,110030.0,110020.0,0.27261772]
[1751549645262,0.15376275,110030.0,110020.0,0.28170648]
[1751549645462,0.09209693,110030.0,110020.0,0.28170639]
[1751549645670,0.09209693,110030.0,110020.0,0.29079515]
[1751549645886,0.00066,110030.0,110020.0,0.49135515]
[1751549646105,0.00066,110030.0,110020.0,0.51635515]
[1751549646340,0.00066,110030.0,110020.0,0.47999988]
[1751549646571,0.64112982,110030.0,110020.0,0.002]
[1751549646790,6.19074925,110030.0,110020.0,0.002]
[1751549646999,6.19050841,110030.0,110020.0,0.005]
[1751549647222,5.72648806,110030.0,110020.0,0.005]
[1751549647479,0.44094385,110030.0,110020.0,0.003]
[1751549647696,0.43185609,110030.0,110020.0,0.003]
[1751549647922,0.43185609,110030.0,110020.0,0.22616329]
[1751549647923,0.42662609,110030.0,110020.0,0.22616329]
[1751549648156,0.08662609,110030.0,110020.0,0.28220639]
[1751549648361,0.34,110040.0,110030.0,0.23781047]
[1751549648574,0.43143693,110040.0,110030.0,0.24689848]
[1751549648803,0.43143693,110040.0,110030.0,0.28218641]
[1751549649027,0.50955925,110050.0,110040.0,0.2090139]
[1751549649247,0.02748522,110060.0,110050.0,0.29886041]
[1751549649248,0.00015722,110060.0,110050.0,0.29886041]
[1751549649467,0.00015722,110060.0,110050.0,0.49758041]
[1751549649918,0.00015722,110060.0,110050.0,0.08986551]
[1751549650158,0.00015722,110060.0,110050.0,0.48869405]
[1751549650375,0.00015722,110060.0,110050.0,0.28977422]
[1751549650590,0.00015722,110060.0,110050.0,0.30841662]
[1751549650800,0.00015722,110060.0,110050.0,0.31750282]
[1751549651005,0.00015722,110060.0,110050.0,0.32450282]
[1751549651691,0.00015722,110060.0,110050.0,0.52326282]
[1751549651893,0.09159415,110060.0,110050.0,0.04533527]
[1751549652560,0.10067936,110060.0,110050.0,0.00046976]
[1751549652785,6.66706628,110060.0,110050.0,0.00046976]
[1751549652994,6.66706628,110060.0,110050.0,0.00546976]
[1751549652995,6.8889405,110060.0,110050.0,0.00546976]
[1751549653220,6.91611772,110060.0,110050.0,0.00546976]
[1751549653436,6.96431438,110060.0,110050.0,0.00546976]
[1751549653646,6.90107499,110060.0,110050.0,0.00546976]
[1751549653862,6.90107499,110060.0,110050.0,0.00046976]
[1751549654281,6.90207499,110060.0,110050.0,0.00046976]
[1751549654495,6.84637247,110060.0,110050.0,0.00046976]
[1751549654707,6.84637247,110060.0,110010.0,0.03786551]
[1751549654708,0.01817743,110020.0,110010.0,0.03786551]
[1751549654912,0.11870336,110020.0,110010.0,0.03786551]
[1751549655143,0.12779245,110020.0,110010.0,0.03786551]
[1751549655572,0.31866682,110020.0,110010.0,0.03786551]
[1751549655805,0.02726908,110010.0,110000.0,0.0271]
[1751549656019,0.09143693,110010.0,110000.0,0.23786492]
[1751549656228,0.09143693,110010.0,110000.0,0.28057443]
[1751549656446,0.10961601,110010.0,110000.0,0.0271]
[1751549656670,0.10961601,110010.0,110000.0,0.03786551]
[1751549656881,0.10961601,110010.0,109990.0,0.24290055]
[1751549657090,0.09143693,110010.0,110000.0,0.04986551]
[1751549657303,0.10052643,110010.0,110000.0,0.04986551]
[1751549657512,0.10961609,110010.0,110000.0,0.03786551]
[1751549657741,0.20608368,110020.0,110010.0,0.03786551]
[1751549657946,0.28843169,110020.0,110010.0,0.03786551]
[1751549658154,0.30957789,110020.0,110010.0,0.03786551]
[1751549658373,0.00908991,110010.0,110000.0,0.003]
[1751549658579,0.96407315,110010.0,110000.0,0.003]
[1751549658833,0.96407357,110010.0,110000.0,0.005]
[1751549659072,0.10961634,110010.0,110000.0,0.03986551]
[1751549659297,0.12779642,110010.0,110000.0,0.03786551]
[1751549659509,0.30959807,110010.0,110000.0,0.03786551]
[1751549659719,0.11870634,110010.0,110000.0,0.03886551]
[1751549659920,0.11870634,110010.0,110000.0,0.04086551]
[1751549660349,0.30050799,110010.0,110000.0,0.04086551]
[1751549660567,0.10961584,110010.0,110000.0,0.04086551]
[1751549660794,1.17561623,110020.0,110000.0,0.26746508]
[1751549660795,0.38903537,110020.0,110000.0,0.26746508]
[1751549661004,0.44961419,110020.0,110000.0,0.26746517]
[1751549661216,0.43143693,110020.0,110010.0,0.19998156]
[1751549661431,0.09143693,110020.0,110010.0,0.27353673]
[1751549661858,0.09143693,110020.0,110010.0,0.26444707]
[1751549662067,0.1005256,110020.0,110010.0,0.06446551]
[1751549662272,0.10961436,110020.0,110010.0,0.06446551]
[1751549662482,0.11870328,110020.0,110010.0,0.06446551]
[1751549662735,0.12779237,110020.0,110010.0,0.03786551]
[1751549662909,0.11870328,110020.0,110010.0,0.03786551]
[1751549663163,0.09143693,110020.0,110010.0,0.04695551]
[1751549663377,0.10052552,110020.0,110010.0,0.03786551]
[1751549663805,0.11870336,110020.0,110010.0,0.03786551]
[1751549664022,0.30957757,110020.0,110010.0,0.03786551]
[1751549664466,0.12779245,110020.0,110010.0,0.03786551]
[1751549664682,0.09143693,110020.0,110010.0,0.03786551]
[1751549664898,0.10961428,110020.0,110010.0,0.03786551]
[1751549665541,0.10961428,110020.0,110010.0,0.03886551]
[1751549665749,0.1187032,110020.0,110010.0,0.03886551]
[1751549665956,0.12779229,110020.0,110010.0,0.03886551]
[1751549666414,0.30957741,110020.0,110010.0,0.03886551]
[1751549666660,0.10961428,110020.0,110010.0,0.03886551]
[1751549666895,0.12779195,110020.0,110010.0,0.03886551]
[1751549667101,0.12779179,110020.0,110010.0,0.03886551]
[1751549667307,0.19174059,110020.0,110010.0,0.03886551]
[1751549667522,0.18265192,110020.0,110010.0,0.03886551]
[1751549667742,0.12779262,110020.0,110010.0,0.03886551]
[1751549667984,0.10961453,110020.0,110010.0,0.03886551]
[1751549668201,0.11870345,110020.0,110010.0,0.03886551]
[1751549668420,0.12779213,110020.0,110010.0,0.03886551]
[1751549668629,0.13688138,110020.0,110010.0,0.03886551]
[1751549668837,0.1368813,110020.0,110010.0,0.03886551]
[1751549669052,0.30957725,110020.0,110010.0,0.03886551]
[1751549669300,0.33609445,110020.0,110010.0,0.03886551]
[1751549669525,0.10961486,110020.0,110010.0,0.03886551]
[1751549669740,0.10961436,110020.0,110010.0,0.03886551]
[1751549669948,0.58213295,110020.0,110010.0,0.04086551]
[1751549670382,0.09143693,110020.0,110010.0,0.04086551]
[1751549670607,0.55486677,110020.0,110010.0,0.24084691]
[1751549670838,0.56395536,110020.0,110010.0,0.04086551]
[1751549671052,0.77300749,110020.0,110010.0,0.04086551]
[1751549671258,0.85535517,110020.0,110010.0,0.04086551]
[1751549671478,0.68265922,110020.0,110010.0,0.04086551]
[1751549671689,0.60031154,110020.0,110010.0,0.04086551]
[1751549671915,0.76391931,110020.0,110010.0,0.04086551]
[1751549672127,0.57304494,110020.0,110010.0,0.04086551]
[1751549672347,0.5821337,110020.0,110010.0,0.04086551]
[1751549672558,0.58213288,110020.0,110010.0,0.04086551]
[1751549672986,0.59122188,110020.0,110010.0,0.04086551]
[1751549673449,0.57304404,110020.0,110010.0,0.04086551]
[1751549673654,0.58213304,110020.0,110010.0,0.04086551]
[1751549674071,0.59122229,110020.0,110010.0,0.04086551]
[1751549674273,0.58213304,110020.0,110010.0,0.04086551]
[1751549674716,0.77300725,110020.0,110010.0,0.04086551]
[1751549674929,0.77300799,110020.0,110010.0,0.04086551]
[1751549675137,0.58213296,110020.0,110010.0,0.04086551]
[1751549675345,0.09143693,110020.0,110010.0,0.24084707]
[1751549675550,0.09143693,110020.0,110010.0,0.30992623]
[1751549675788,0.09183693,110020.0,110010.0,0.30992623]
[1751549676419,0.09143693,110020.0,110010.0,0.30083673]
[1751549676629,0.09143693,110020.0,110010.0,0.31901581]
[1751549676842,0.09143693,110020.0,110010.0,0.29174707]
[1751549677103,0.09143693,110020.0,110010.0,0.06666551]
[1751549677347,0.09143693,110020.0,110010.0,0.04086551]
[1751549677348,0.1096142,110020.0,110010.0,0.04086551]
[1751549677558,0.1096142,110020.0,110010.0,0.003]
[1751549677559,0.8016087,110020.0,110010.0,0.003]
[1751549677801,1.15614955,110020.0,110010.0,0.003]
[1751549678019,1.55578955,110020.0,110010.0,0.003]
[1751549678231,6.60161636,110020.0,110010.0,0.002]
[1751549678412,0.20543241,110010.0,110000.0,0.0002]
[1751549678651,0.85173611,110010.0,110000.0,0.0002]
[1751549678863,0.76938901,110010.0,110000.0,0.03806551]
[1751549679294,0.76029918,110010.0,110000.0,0.03806551]
[1751549679872,0.76029918,110010.0,110000.0,0.04006551]
[1751549680446,0.75120927,110010.0,110000.0,0.04006551]
[1751549680651,0.7729826,110010.0,110000.0,0.04106551]
[1751549680877,0.86441953,110010.0,110000.0,0.0032]
[1751549681088,0.88961953,110010.0,110000.0,0.0032]
[1751549681297,1.22961953,110010.0,110000.0,0.0032]
[1751549681521,6.45830953,110010.0,110000.0,0.0032]
[1751549681750,6.94893627,110010.0,110000.0,0.0032]
[1751549681964,6.94893627,110010.0,109960.0,0.0256]
[1751549681965,0.01818453,109980.0,109960.0,0.0256]
[1751549682204,0.09143693,109970.0,109960.0,0.06346551]
[1751549682426,0.10052965,109970.0,109960.0,0.06346551]
[1751549682637,0.09143693,109970.0,109960.0,0.25444404]
[1751549682848,0.10052957,109970.0,109960.0,0.25444404]
[1751549683051,0.10962246,109970.0,109960.0,0.06346551]
[1751549683299,0.76401396,109970.0,109960.0,0.00066957]
[1751549683541,0.76401396,109970.0,109960.0,0.00366957]
[1751549683747,0.10962296,109970.0,109960.0,0.00366957]
[1751549683992,0.13064514,109970.0,109960.0,0.00366957]
[1751549684221,0.13973844,109970.0,109960.0,0.00366957]
[1751549684426,0.13064514,109970.0,109960.0,0.00366957]
[1751549684561,0.40432285,109970.0,109960.0,0.00366957]
[1751549684773,0.22245507,109970.0,109960.0,0.00366957]
[1751549684973,0.32160622,109970.0,109960.0,0.00366957]
[1751549685221,0.32160622,109970.0,109960.0,0.04353508]
[1751549685222,0.78503606,109970.0,109960.0,0.04353508]
[1751549685422,0.121552,109970.0,109960.0,0.04353508]
[1751549685678,0.13973852,109970.0,109960.0,0.04353508]
[1751549685881,0.10336647,109970.0,109960.0,0.2254194]
[1751549686100,0.10336647,109970.0,109960.0,0.06903508]
[1751549686311,0.14883132,109970.0,109960.0,0.06903508]
[1751549686521,0.14156976,109970.0,109960.0,0.06903508]
[1751549686727,0.10336647,109970.0,109960.0,0.28729525]
[1751549686938,0.10336647,109970.0,109960.0,0.06903508]
[1751549687163,0.3216063,109970.0,109960.0,0.04353508]
[1751549687368,0.76685061,109970.0,109960.0,0.00566957]
[1751549688189,0.75775747,109970.0,109960.0,0.04353508]
[1751549688476,0.10336647,109970.0,109960.0,0.26181353]
[1751549688622,0.10336647,109970.0,109960.0,0.2779194]
[1751549688843,0.10336647,109970.0,109960.0,0.30520138]
[1751549689049,0.10336647,109970.0,109960.0,0.31429534]
[1751549689265,0.06349752,110010.0,109990.0,0.01818289]
[1751549689489,0.13199908,110010.0,109990.0,0.29037714]
[1751549689699,0.12290966,110010.0,110000.0,0.25607443]
[1751549689937,1.401458,110030.0,110010.0,0.19997777]
[1751549689938,0.08524278,110030.0,110010.0,0.19997777]
[1751549690160,0.09143693,110020.0,110010.0,0.26514344]
[1751549690361,0.09143693,110020.0,110010.0,0.06516551]
[1751549690559,0.09143693,110020.0,110010.0,0.26514724]
[1751549690773,0.56701264,110020.0,110010.0,0.03686551]
[1751549690986,0.56701264,110020.0,110010.0,0.03691231]
[1751549690987,0.66642339,110020.0,110010.0,0.03691231]
[1751549691198,0.68816865,110020.0,110010.0,0.03691231]
[1751549691399,0.60693549,110020.0,110010.0,0.03591231]
[1751549691611,0.57610131,110020.0,110010.0,0.03591231]
[1751549691820,0.12176031,110020.0,110010.0,0.03591231]
[1751549692229,0.11267147,110020.0,110010.0,0.03591231]
[1751549692515,0.12176023,110020.0,110010.0,0.03591231]
[1751549692715,0.12176023,110020.0,110010.0,0.03691231]
[1751549692938,0.12216023,110020.0,110010.0,0.03691231]
[1751549693153,0.14033832,110020.0,110010.0,0.03691231]
[1751549693796,0.14942757,110020.0,110010.0,0.03691231]
[1751549694010,0.38415017,110020.0,110010.0,0.03691231]
[1751549694227,0.37506141,110020.0,110010.0,0.03691231]
[1751549694414,0.12216039,110020.0,110010.0,0.03691231]
[1751549694882,0.13124939,110020.0,110010.0,0.03691231]
[1751549695299,0.12216039,110020.0,110010.0,0.03691231]
[1751549695506,0.11307147,110020.0,110010.0,0.03691231]
[1751549695709,0.1403384,110020.0,110010.0,0.03691231]
[1751549695915,0.13124923,110020.0,110010.0,0.03691231]
[1751549696118,0.19813229,110020.0,110010.0,0.03691231]
[1751549696310,0.20722138,110020.0,110010.0,0.03691231]
[1751549696603,0.20722129,110020.0,110010.0,0.03691231]
[1751549696794,0.14033823,110020.0,110010.0,0.03691231]
[1751549697465,0.32212385,110020.0,110010.0,0.03691231]
[1751549697685,0.12216056,110020.0,110010.0,0.03691231]
[1751549697894,0.13124923,110020.0,110010.0,0.03691231]
[1751549698532,0.14033832,110020.0,110010.0,0.0010468]
[1751549698752,0.13124915,110020.0,110010.0,0.03691231]
[1751549698966,0.1039828,110020.0,110010.0,0.03691231]
[1751549699181,0.11307147,110020.0,110010.0,0.03691231]
[1751549699399,0.12216015,110020.0,110010.0,0.03691231]
[1751549699630,0.32096015,110020.0,110010.0,0.03691231]
[1751549699853,0.33004915,110020.0,110010.0,0.03691231]
[1751549700290,0.43057533,110020.0,110010.0,0.03691231]
[1751549700508,0.61236103,110020.0,110010.0,0.03691231]
[1751549700928,0.61236103,110020.0,110010.0,0.0010468]
[1751549700929,1.58232159,110020.0,110010.0,0.0010468]
[1751549701210,0.90784925,110020.0,110010.0,0.0010468]
[1751549701466,0.80171139,110020.0,110010.0,0.0284468]
[1751549701941,0.60307131,110020.0,110010.0,0.0284468]
[1751549702190,0.98349651,110020.0,110010.0,0.0284468]
[1751549702516,6.69307417,110020.0,110010.0,0.0010468]
[1751549702690,0.20912855,109980.0,109970.0,0.0255]
[1751549702913,0.78292621,109980.0,109970.0,0.03586551]
[1751549703176,0.3187488,109980.0,109970.0,0.03586551]
[1751549703400,0.1096208,109980.0,109970.0,0.03586551]
[1751549703629,0.11871303,109980.0,109970.0,0.03586551]
[1751549703866,0.09143693,109980.0,109970.0,0.03586551]
[1751549704087,0.09143693,109980.0,109970.0,0.06126551]
[1751549704297,0.09143693,109980.0,109970.0,0.28711948]
[1751549704505,0.09143693,109980.0,109970.0,0.27802651]
[1751549704710,0.09143693,109980.0,109970.0,0.28711965]
[1751549704922,0.09143693,109980.0,109970.0,0.29621229]
[1751549705147,0.09143693,109980.0,109970.0,0.30530518]
[1751549705362,0.1096208,109980.0,109970.0,0.08706551]
[1751549705568,0.35370971,109980.0,109970.0,0.08706551]
[1751549705774,0.1096208,109980.0,109970.0,0.08706551]
[1751549705978,0.11871311,109980.0,109970.0,0.08706551]
[1751549706202,0.02727891,109970.0,109960.0,0.02796957]
[1751549706442,0.02727891,109970.0,109960.0,0.00066957]
[1751549706443,1.0251287,109970.0,109960.0,0.00066957]
[1751549706674,1.62110648,109970.0,109960.0,0.00066957]
[1751549706908,0.44052974,109970.0,109960.0,0.02646957]
[1751549707131,1.31388837,109970.0,109960.0,0.00066957]
[1751549707348,0.6314909,109970.0,109960.0,0.00066957]
[1751549707991,1.31388837,109970.0,109960.0,0.00066957]
[1751549708226,0.45871584,109970.0,109960.0,0.00066957]
[1751549708457,0.93154055,109970.0,109960.0,0.00266957]
[1751549708687,0.92789571,109970.0,109960.0,0.00266957]
[1751549708980,6.58340341,109970.0,109960.0,0.00266957]
[1751549709196,6.56164318,109970.0,109960.0,0.00266957]
[1751549709644,6.56164318,109970.0,109960.0,0.00066957]
[1751549709855,5.69737768,109970.0,109960.0,0.00266957]
[1751549710065,5.04278693,109970.0,109960.0,0.2007419]
[1751549710338,0.09143693,109970.0,109960.0,0.26290758]
[1751549710521,0.09243693,109970.0,109960.0,0.27901353]
[1751549710747,0.09243693,109970.0,109960.0,0.28810749]
[1751549710960,0.001,109970.0,109960.0,0.306295]
[1751549711169,0.001,109970.0,109960.0,0.28810757]
[1751549711381,0.37675903,109980.0,109970.0,0.0256]
[1751549711588,0.51678193,109980.0,109970.0,0.0256]
[1751549711809,0.61910398,109980.0,109970.0,0.27892659]
[1751549712010,0.11910398,109980.0,109970.0,0.26983329]
[1751549712257,0.11910398,109980.0,109970.0,0.29711237]
[1751549712479,0.09143693,109980.0,109970.0,0.27892651]
[1751549712686,0.09143693,109980.0,109970.0,0.30720551]
[1751549713309,0.09143693,109980.0,109970.0,0.30720559]
[1751549713517,0.09143693,109980.0,109970.0,0.3162984]
[1751549713718,0.09143693,109980.0,109970.0,0.28901981]
[1751549713951,0.13548973,109980.0,109970.0,0.08896551]
[1751549714164,0.09143693,109980.0,109970.0,0.29911253]
[1751549714377,0.37643324,110000.0,109990.0,0.0256]
[1751549714583,5.41914857,110000.0,109990.0,0.0256]
[1751549714790,0.65870842,110000.0,109980.0,0.26810562]
[1751549714975,0.46779857,110000.0,109980.0,0.28629049]
[1751549715248,0.46779857,110000.0,109980.0,0.29538272]
[1751549715530,0.55014484,110000.0,109980.0,0.30447486]
[1751549715748,0.55014484,110000.0,109990.0,0.24182644]
[1751549715749,0.44152709,110000.0,109990.0,0.24182644]
[1751549715981,0.43243693,110000.0,109990.0,0.26000949]
[1751549716184,0.43143693,110000.0,109990.0,0.27819204]
[1751549716389,0.501,110000.0,109990.0,0.30496582]
[1751549716619,0.501,110000.0,109990.0,0.31405697]
[1751549716833,0.503,110000.0,109990.0,0.31405697]
[1751549717047,0.501,110000.0,109990.0,0.31405697]
[1751549717479,0.501,110000.0,109990.0,0.31605697]
[1751549717686,4.95135,110000.0,109990.0,0.31605697]
[1751549717920,0.3404,110010.0,110000.0,0.25239957]
[1751549718137,0.43183693,110010.0,110000.0,0.2614899]
[1751549718356,0.09183693,110010.0,110000.0,0.28826508]
[1751549718571,0.09183693,110010.0,110000.0,0.28826517]
[1751549718823,0.65520864,110010.0,110000.0,0.06176551]
[1751549719035,0.65520864,110010.0,109990.0,0.004]
[1751549719036,0.55454026,110000.0,109990.0,0.004]
[1751549719252,6.80054249,110000.0,109990.0,0.00246957]
[1751549719478,6.72782513,110000.0,109990.0,0.00246957]
[1751549719693,6.32826309,110000.0,109990.0,0.00046957]
[1751549719911,6.55470309,110000.0,109990.0,0.00046957]
[1751549720344,7.09255589,110000.0,109990.0,0.00046957]
[1751549720983,7.16974076,110000.0,109990.0,0.00046957]
[1751549721238,7.17074076,110000.0,109990.0,0.00046957]
[1751549721455,7.22117587,110000.0,109990.0,0.00046957]
[1751549721667,7.43969587,110000.0,109990.0,0.00046957]
[1751549722103,7.412511,110000.0,109990.0,0.00046957]
[1751549722330,7.46696194,110000.0,109990.0,0.00046957]
[1751549722781,7.412511,110000.0,109990.0,0.00046957]
[1751549723682,7.46696194,110000.0,109990.0,0.00046957]
[1751549724107,7.412511,110000.0,109990.0,0.00046957]
[1751549724574,7.43968964,110000.0,109990.0,0.00046957]
[1751549724805,6.24811721,110000.0,109990.0,0.00046957]
[1751549725039,6.95318456,110000.0,109990.0,0.00046957]
[1751549725252,6.95314456,110000.0,109990.0,0.00046957]
[1751549725464,6.92604456,110000.0,109990.0,0.00046957]
[1751549725682,7.44017864,110000.0,109990.0,0.00046957]
[1751549725893,7.46647864,110000.0,109990.0,0.00046957]
[1751549726546,7.46647864,110000.0,109960.0,0.0002]
[1751549726547,0.70459482,109970.0,109960.0,0.0002]
[1751549726773,7.14225045,109970.0,109960.0,0.0002]
[1751549726996,6.11972631,109960.0,109950.0,0.0002]
[1751549727213,6.23290842,109960.0,109950.0,0.0002]
[1751549727434,6.23726324,109960.0,109950.0,0.0002]
[1751549727657,6.32654622,109960.0,109950.0,0.0002]
[1751549727868,6.81211652,109960.0,109950.0,0.0002]
[1751549728346,6.81258554,109960.0,109950.0,0.0002]
[1751549728772,7.06506554,109960.0,109950.0,0.0002]
[1751549729471,6.89444105,109960.0,109950.0,0.0002]
[1751549729703,7.1217395,109960.0,109950.0,0.0002]
[1751549729922,7.09456105,109960.0,109950.0,0.0002]
[1751549730763,7.09556105,109960.0,109950.0,0.0002]
[1751549730973,6.84320105,109960.0,109950.0,0.0002]
[1751549731160,6.54038515,109960.0,109950.0,0.0002]
[1751549731836,7.10818412,109960.0,109950.0,0.0002]
[1751549732046,7.13536257,109960.0,109950.0,0.0002]
[1751549732275,7.08198412,109960.0,109950.0,0.0002]
[1751549732498,7.17342105,109960.0,109950.0,0.0002]
[1751549732941,7.2005995,109960.0,109950.0,0.0002]
[1751549733210,7.2256995,109960.0,109950.0,0.0002]
[1751549733422,7.26193743,109960.0,109950.0,0.0002]
[1751549733630,7.2256995,109960.0,109950.0,0.0002]
[1751549734090,6.92110105,109960.0,109950.0,0.0002]
[1751549734293,7.17346105,109960.0,109950.0,0.0002]
[1751549735162,6.89420105,109960.0,109950.0,0.0002]
[1751549735378,6.53209119,109960.0,109950.0,0.0002]
[1751549735591,6.20942067,109960.0,109950.0,0.0002]
[1751549735819,0.09390595,109960.0,109950.0,0.25309053]
[1751549736087,0.00246902,109960.0,109950.0,0.37076786]
[1751549736306,0.00246902,109960.0,109950.0,0.30714529]
[1751549736942,0.00146902,109960.0,109950.0,0.30714529]
[1751549737392,0.00046902,109960.0,109950.0,0.31714529]
[1751549737793,0.00146902,109960.0,109950.0,0.31714529]
[1751549738250,0.00046902,109960.0,109950.0,0.30805083]
[1751549738464,0.00046902,109960.0,109950.0,0.32623991]
[1751549738725,0.00046902,109960.0,109950.0,0.32114545]
[1751549738924,0.00046902,109960.0,109950.0,0.33023991]
[1751549739134,0.00046902,109960.0,109950.0,0.33023999]
[1751549739360,0.00046902,109960.0,109950.0,0.33023991]
[1751549740484,0.00046902,109960.0,109950.0,0.33023949]
[1751549741994,0.00046902,109960.0,109950.0,0.79393846]
[1751549742646,0.00046902,109960.0,109950.0,0.33023949]
[1751549742877,0.00046902,109960.0,109950.0,0.79393846]
[1751549743959,0.00086902,109960.0,109950.0,1.08497539]
[1751549745684,0.00086902,109960.0,109950.0,0.62127642]
[1751549745912,0.00086902,109960.0,109950.0,0.88537539]
[1751549746137,0.00086902,109960.0,109950.0,1.08469539]
[1751549746371,0.00086902,109960.0,109950.0,1.42469539]
[1751549746610,0.4977,110010.0,110000.0,0.29645598]
[1751549746828,0.09183693,110010.0,110000.0,0.29645615]
[1751549747083,0.0004,110010.0,110000.0,0.31463722]
[1751549747320,0.0004,110010.0,110000.0,0.77833562]
[1751549747535,0.0004,110020.0,110010.0,0.29643641]
[1751549747753,0.0004,110020.0,110010.0,1.05129231]
[1751549747984,0.0004,110020.0,110010.0,1.39129231]
[1751549748215,0.07327458,110060.0,110050.0,0.2514087]
[1751549748457,0.07327458,110060.0,110050.0,0.29636041]
[1751549749120,0.41327458,110060.0,110050.0,0.29636049]
[1751549749335,0.07327458,110060.0,110050.0,0.30544669]
[1751549749557,0.00055722,110060.0,110050.0,0.30549351]
[1751549749778,0.00055722,110060.0,110050.0,0.77019248]
[1751549750006,0.00055722,110060.0,110050.0,0.30649351]
[1751549750222,0.00055722,110060.0,110050.0,0.50609351]
[1751549750428,0.00055722,110060.0,110050.0,0.50509351]
[1751549750872,0.00055722,110060.0,110050.0,0.05154682]
[1751549751093,1.40054879,110060.0,110050.0,4.682e-05]
[1751549751325,6.84501572,110060.0,110050.0,4.682e-05]
[1751549751543,6.59333572,110060.0,110050.0,4.682e-05]
[1751549751753,6.84501572,110060.0,110050.0,4.682e-05]
[1751549751958,6.84501572,110060.0,110050.0,0.00404682]
[1751549752391,6.84501572,110060.0,110050.0,4.682e-05]
[1751549752598,6.84501572,110060.0,110050.0,0.00104682]
[1751549753216,6.87061572,110060.0,110050.0,0.00104682]
[1751549753836,6.11649256,110060.0,110050.0,0.00104682]
[1751549754055,6.54621836,110060.0,110050.0,0.00104682]
[1751549754271,6.68078143,110060.0,110050.0,0.00104682]
[1751549754691,6.68078143,110060.0,110050.0,4.682e-05]
[1751549754692,6.67169573,110060.0,110050.0,4.682e-05]
[1751549755384,6.65715488,110060.0,110050.0,4.682e-05]
[1751549755596,6.67169573,110060.0,110050.0,4.682e-05]
[1751549755811,6.76313266,110060.0,110050.0,4.682e-05]
[1751549756036,6.36153266,110060.0,110050.0,4.682e-05]
[1751549756236,5.93156686,110060.0,110050.0,4.682e-05]
[1751549756476,6.27009573,110060.0,110050.0,4.682e-05]
[1751549756692,6.57149573,110060.0,110050.0,4.682e-05]
[1751549756903,6.62449573,110060.0,110050.0,4.682e-05]
[1751549757312,6.64134086,110060.0,110050.0,4.682e-05]
[1751549757525,6.48137779,110060.0,110050.0,4.682e-05]
[1751549757737,6.68971266,110060.0,110050.0,4.682e-05]
[1751549757940,6.43823266,110060.0,110050.0,4.682e-05]
[1751549758146,6.68967266,110060.0,110050.0,4.682e-05]